[Event "Schack-SM 2023: Veteran-SM 65+"]
[Site "Helsingborg Arena, Mellersta Stenbocksgatan 14, Helsingborg, Sweden"]
[Date "2023.07.02"]
[Round "2.2"]
[White "Malmdin, Nils-Ake"]
[Black "Wedin, Svante"]
[Result "1-0"]
[TimeControl "90 minutes for 40 moves + 30 minutes for the rest of games + 30 seconds per move from move one."]
[WhiteTitle "FM"]
[WhiteElo "2091"]
[BlackElo "1932"]

1. e4 {[%clk 01:30:36]} {[%emt 00:00:22]} c5 {[%clk 01:30:38]} {[%emt
00:00:24]} 2. Nf3 {[%clk 01:30:45]} {[%emt 00:00:19]} g6 {[%clk 01:30:42]}
{[%emt 00:00:27]} 3. d4 {[%clk 01:29:38]} {[%emt 00:01:36]} cxd4 {[%clk
01:31:04]} {[%emt 00:00:09]} 4. Nxd4 {[%clk 01:29:52]} {[%emt 00:00:15]} Nf6
{[%clk 01:29:34]} {[%emt 00:02:02]} 5. Nc3 {[%clk 01:29:38]} {[%emt 00:00:43]}
d6 {[%clk 01:29:37]} {[%emt 00:00:28]} 6. Be3 {[%clk 01:29:34]} {[%emt
00:00:32]} Bg7 {[%clk 01:30:00]} {[%emt 00:00:08]} 7. Be2 {[%clk 01:29:38]}
{[%emt 00:00:25]} O-O {[%clk 01:28:30]} {[%emt 00:02:01]} 8. Qd2 {[%clk
01:29:35]} {[%emt 00:00:32]} Nc6 {[%clk 01:27:55]} {[%emt 00:01:06]} 9. O-O-O
{[%clk 01:28:35]} {[%emt 00:01:29]} Nxd4 {[%clk 01:25:32]} {[%emt 00:02:55]} 10.
Bxd4 {[%clk 01:28:45]} {[%emt 00:00:18]} Be6 {[%clk 01:25:45]} {[%emt
00:00:18]} 11. h4 {[%clk 01:23:59]} {[%emt 00:05:15]} Qa5 {[%clk 01:17:36]}
{[%emt 00:08:40]} 12. Qg5 {[%clk 00:50:27]} {[%emt 00:34:01]} Qxg5+ {[%clk
01:01:19]} {[%emt 00:16:48]} 13. hxg5 {[%clk 00:50:45]} {[%emt 00:00:11]} Ng4
{[%clk 01:00:37]} {[%emt 00:01:12]} 14. Bxg4 {[%clk 00:43:54]} {[%emt
00:07:21]} Bxg4 {[%clk 01:00:32]} {[%emt 00:00:36]} 15. f3 {[%clk 00:44:11]}
{[%emt 00:00:12]} Bxd4 {[%clk 00:56:35]} {[%emt 00:04:28]} 16. Rxd4 {[%clk
00:44:27]} {[%emt 00:00:13]} Be6 {[%clk 00:57:00]} {[%emt 00:00:06]} 17. e5
{[%clk 00:32:50]} {[%emt 00:12:07]} dxe5 {[%clk 00:47:56]} {[%emt 00:09:35]} 18.
Rdh4 {[%clk 00:33:07]} {[%emt 00:00:11]} h5 {[%clk 00:48:14]} {[%emt 00:00:13]}
19. gxh6 {[%clk 00:33:25]} {[%emt 00:00:12]} Kh7 {[%clk 00:48:23]} {[%emt
00:00:21]} 20. Re1 {[%clk 00:33:31]} {[%emt 00:00:24]} f6 {[%clk 00:42:12]}
{[%emt 00:06:42]} 21. f4 {[%clk 00:24:58]} {[%emt 00:09:01]} Rad8 {[%clk
00:31:34]} {[%emt 00:11:09]} 22. fxe5 {[%clk 00:24:14]} {[%emt 00:01:13]} fxe5
{[%clk 00:30:43]} {[%emt 00:01:22]} 23. Ne4 {[%clk 00:24:33]} {[%emt 00:00:10]}
Bd5 {[%clk 00:16:15]} {[%emt 00:15:00]} 24. Ng5+ {[%clk 00:16:16]} {[%emt
00:08:46]} Kh8 {[%clk 00:16:36]} {[%emt 00:00:09]} 25. b3 {[%clk 00:15:24]}
{[%emt 00:01:22]} Rf5 {[%clk 00:15:30]} {[%emt 00:01:35]} 26. Rg4 {[%clk
00:15:30]} {[%emt 00:00:24]} b5 {[%clk 00:15:12]} {[%emt 00:00:49]} 27. Kb2
{[%clk 00:14:27]} {[%emt 00:01:33]} Rd7 {[%clk 00:11:21]} {[%emt 00:04:21]} 28.
Re2 {[%clk 00:13:46]} {[%emt 00:01:09]} Rc7 {[%clk 00:07:19]} {[%emt 00:04:34]}
29. Rd2 {[%clk 00:12:49]} {[%emt 00:01:25]} Rd7 {[%clk 00:07:43]} {[%emt
00:00:08]} 30. c4 {[%clk 00:07:38]} {[%emt 00:05:40]} bxc4 {[%clk 00:07:42]}
{[%emt 00:00:32]} 31. bxc4 {[%clk 00:07:49]} {[%emt 00:00:18]} Be6 {[%clk
00:07:31]} {[%emt 00:00:42]} 32. Rc2 {[%clk 00:07:12]} {[%emt 00:01:07]} Rb7+
{[%clk 00:06:56]} {[%emt 00:01:05]} 33. Kc3 {[%clk 00:07:06]} {[%emt 00:00:35]}
Bd7 {[%clk 00:06:00]} {[%emt 00:01:27]} 34. Rd2 {[%clk 00:06:05]} {[%emt
00:01:30]} Rf8 {[%clk 00:03:41]} {[%emt 00:02:50]} 35. Re4 {[%clk 00:05:46]}
{[%emt 00:00:48]} Rf5 {[%clk 00:03:44]} {[%emt 00:00:28]} 36. Rxe5 {[%clk
00:05:58]} {[%emt 00:00:18]} Rxe5 {[%clk 00:03:39]} {[%emt 00:00:36]} 37. Nf7+
{[%clk 00:06:25]} {[%emt 00:00:02]} Kh7 {[%clk 00:03:47]} {[%emt 00:00:23]} 38.
Nxe5 {[%clk 00:06:49]} {[%emt 00:00:05]} Bf5 {[%clk 00:04:03]} {[%emt
00:00:14]} 39. g4 {[%clk 00:07:01]} {[%emt 00:00:18]} Be6 {[%clk 00:03:45]}
{[%emt 00:00:48]} 40. g5 {[%clk 00:07:07]} {[%emt 00:00:23]} Rb1 {[%clk
00:02:33]} {[%emt 00:01:43]} 41. Rd8 {[%clk 00:01:16]} {[%emt 00:06:20]} Re1
{[%clk 00:00:48]} {[%emt 00:02:15]} 42. Nd3 {[%clk 00:27:33]} {[%emt 00:04:13]}
Re4 {[%clk 00:26:39]} {[%emt 00:04:39]} 43. Rd4 {[%clk 00:25:46]} {[%emt
00:02:16]} Re3 {[%clk 00:26:34]} {[%emt 00:00:36]} 44. Kd2 {[%clk 00:24:23]}
{[%emt 00:01:52]} Rg3 {[%clk 00:25:16]} {[%emt 00:01:50]} 45. Re4 {[%clk
00:20:07]} {[%emt 00:04:45]} Bxc4 {[%clk 00:19:50]} {[%emt 00:05:58]} 46. Rxe7+
{[%clk 00:13:16]} {[%emt 00:07:20]} Kh8 {[%clk 00:11:33]} {[%emt 00:08:47]} 47.
Ne5 {[%clk 00:13:34]} {[%emt 00:00:11]} Rxg5 {[%clk 00:10:43]} {[%emt
00:01:21]} 48. Nxc4 {[%clk 00:13:28]} {[%emt 00:00:35]} a5 {[%clk 00:10:55]}
{[%emt 00:00:19]} 49. Ne5 {[%clk 00:12:50]} {[%emt 00:01:07]} Rg2+ {[%clk
00:09:51]} {[%emt 00:01:35]} 50. Ke3 {[%clk 00:12:25]} {[%emt 00:00:53]} 1-0

[Event "Schack-SM 2023: Veteran-SM 50+"]
[Site "Helsingborg Arena, Mellersta Stenbocksgatan 14, Helsingborg, Sweden"]
[Date "2023.07.02"]
[Round "2.2"]
[White "Moborn, Anders"]
[Black "Gamback, Bjorn"]
[Result "1-0"]
[TimeControl "90 minutes for 40 moves + 30 minutes for the rest of games + 30 seconds per move from move one."]
[BlackTitle "CM"]
[WhiteElo "1956"]
[BlackElo "2048"]

1. d4 {[%clk 01:30:55]} {[%emt 00:00:04]} Nf6 {[%clk 01:23:29]} {[%emt
00:07:32]} 2. c4 {[%clk 01:31:05]} {[%emt 00:00:19]} e6 {[%clk 01:23:55]}
{[%emt 00:00:05]} 3. Nc3 {[%clk 01:31:00]} {[%emt 00:00:35]} Bb4 {[%clk
01:24:20]} {[%emt 00:00:05]} 4. f3 {[%clk 01:29:03]} {[%emt 00:02:26]} c5
{[%clk 01:24:29]} {[%emt 00:00:21]} 5. a3 {[%clk 01:19:14]} {[%emt 00:10:20]}
cxd4 {[%clk 01:24:12]} {[%emt 00:00:47]} 6. axb4 {[%clk 01:17:56]} {[%emt
00:01:47]} dxc3 {[%clk 01:24:34]} {[%emt 00:00:08]} 7. bxc3 {[%clk 01:18:16]}
{[%emt 00:00:11]} d5 {[%clk 01:24:54]} {[%emt 00:00:10]} 8. c5 {[%clk
01:12:43]} {[%emt 00:06:03]} Bd7 {[%clk 01:14:56]} {[%emt 00:10:28]} 9. Bf4
{[%clk 01:06:24]} {[%emt 00:06:49]} Nh5 {[%clk 01:05:34]} {[%emt 00:09:52]} 10.
Bd6 {[%clk 01:05:55]} {[%emt 00:00:59]} Bb5 {[%clk 01:05:03]} {[%emt 00:01:01]}
11. e3 {[%clk 01:02:12]} {[%emt 00:04:13]} Bxf1 {[%clk 01:01:07]} {[%emt
00:04:26]} 12. Kxf1 {[%clk 01:02:20]} {[%emt 00:00:22]} b6 {[%clk 01:00:22]}
{[%emt 00:01:15]} 13. Qa4+ {[%clk 00:54:40]} {[%emt 00:08:09]} Qd7 {[%clk
00:59:43]} {[%emt 00:01:09]} 14. cxb6 {[%clk 00:51:34]} {[%emt 00:03:37]} axb6
{[%clk 00:57:38]} {[%emt 00:02:35]} 15. Qxd7+ {[%clk 00:50:02]} {[%emt
00:02:02]} Kxd7 {[%clk 00:57:54]} {[%emt 00:00:13]} 16. Rxa8 {[%clk 00:50:24]}
{[%emt 00:00:09]} Kxd6 {[%clk 00:58:15]} {[%emt 00:00:08]} 17. Ne2 {[%clk
00:50:28]} {[%emt 00:00:27]} Nf6 {[%clk 00:55:30]} {[%emt 00:03:15]} 18. Kf2
{[%clk 00:49:08]} {[%emt 00:01:50]} Nfd7 {[%clk 00:54:12]} {[%emt 00:01:48]} 19.
Rd1 {[%clk 00:45:11]} {[%emt 00:04:26]} Rc8 {[%clk 00:52:33]} {[%emt 00:02:08]}
20. e4 {[%clk 00:44:49]} {[%emt 00:00:53]} Rc4 {[%clk 00:52:28]} {[%emt
00:00:35]} 21. exd5 {[%clk 00:44:47]} {[%emt 00:00:33]} exd5 {[%clk 00:52:47]}
{[%emt 00:00:10]} 22. Rd4 {[%clk 00:44:00]} {[%emt 00:01:17]} Nc6 {[%clk
00:52:08]} {[%emt 00:01:09]} 23. Rxc4 {[%clk 00:43:41]} {[%emt 00:00:50]} dxc4
{[%clk 00:52:36]} {[%emt 00:00:01]} 24. Rg8 {[%clk 00:43:20]} {[%emt 00:00:50]}
Nf6 {[%clk 00:47:12]} {[%emt 00:05:55]} 25. Rxg7 {[%clk 00:41:51]} {[%emt
00:01:59]} Ke7 {[%clk 00:43:56]} {[%emt 00:03:46]} 26. Rg5 {[%clk 00:41:14]}
{[%emt 00:01:06]} Kd6 {[%clk 00:43:27]} {[%emt 00:01:00]} 27. Rf5 {[%clk
00:33:35]} {[%emt 00:08:08]} Ke6 {[%clk 00:42:56]} {[%emt 00:01:02]} 28. g4
{[%clk 00:33:48]} {[%emt 00:00:18]} Nd5 {[%clk 00:35:09]} {[%emt 00:08:17]} 29.
Nf4+ {[%clk 00:31:16]} {[%emt 00:02:55]} Nxf4 {[%clk 00:33:01]} {[%emt
00:02:45]} 30. Rxf4 {[%clk 00:31:40]} {[%emt 00:00:05]} Ne5 {[%clk 00:30:52]}
{[%emt 00:02:39]} 31. Re4 {[%clk 00:31:29]} {[%emt 00:00:41]} f5 {[%clk
00:29:57]} {[%emt 00:01:25]} 32. Re2 {[%clk 00:29:49]} {[%emt 00:02:07]} f4
{[%clk 00:27:54]} {[%emt 00:02:36]} 33. Re4 {[%clk 00:29:53]} {[%emt 00:00:26]}
b5 {[%clk 00:28:12]} {[%emt 00:00:12]} 34. Rxf4 {[%clk 00:29:53]} {[%emt
00:00:30]} Nd3+ {[%clk 00:28:38]} {[%emt 00:00:04]} 35. Ke3 {[%clk 00:30:13]}
{[%emt 00:00:10]} Nxf4 {[%clk 00:29:03]} {[%emt 00:00:05]} 36. Kxf4 {[%clk
00:30:37]} {[%emt 00:00:07]} Kf6 {[%clk 00:29:29]} {[%emt 00:00:03]} 37. h4
{[%clk 00:30:38]} {[%emt 00:00:29]} h6 {[%clk 00:29:53]} {[%emt 00:00:06]} 38.
g5+ {[%clk 00:30:57]} {[%emt 00:00:11]} hxg5+ {[%clk 00:30:18]} {[%emt
00:00:05]} 39. hxg5+ {[%clk 00:31:21]} {[%emt 00:00:07]} 1-0

[Event "Schack-SM 2023: Junior-SM"]
[Site "Helsingborg Arena, Mellersta Stenbocksgatan 14, Helsingborg, Sweden"]
[Date "2023.07.02"]
[Round "2.2"]
[White "Falkevall, Axel"]
[Black "Ostlund, Joar"]
[Result "0-1"]
[TimeControl "90 minutes for 40 moves + 30 minutes for the rest of the game + 30 seconds per move from move one."]
[WhiteTitle "FM"]
[BlackTitle "CM"]
[WhiteElo "2311"]
[BlackElo "2265"]

1. e4 {[%clk 01:30:54]} {[%emt 00:00:05]} e5 {[%clk 01:30:54]} {[%emt
00:00:06]} 2. Nf3 {[%clk 01:31:20]} {[%emt 00:00:04]} Nc6 {[%clk 01:31:19]}
{[%emt 00:00:06]} 3. Bb5 {[%clk 01:31:34]} {[%emt 00:00:15]} Nf6 {[%clk
01:31:41]} {[%emt 00:00:08]} 4. d3 {[%clk 01:31:47]} {[%emt 00:00:17]} Bc5
{[%clk 01:32:03]} {[%emt 00:00:08]} 5. c3 {[%clk 01:32:11]} {[%emt 00:00:06]}
O-O {[%clk 01:31:03]} {[%emt 00:01:31]} 6. O-O {[%clk 01:32:36]} {[%emt
00:00:06]} d5 {[%clk 01:31:25]} {[%emt 00:00:07]} 7. exd5 {[%clk 01:32:46]}
{[%emt 00:00:20]} Qxd5 {[%clk 01:31:48]} {[%emt 00:00:07]} 8. Bc4 {[%clk
01:33:12]} {[%emt 00:00:04]} Qd8 {[%clk 01:32:09]} {[%emt 00:00:08]} 9. Nbd2
{[%clk 01:31:53]} {[%emt 00:01:48]} a6 {[%clk 01:23:47]} {[%emt 00:08:53]} 10.
b4 {[%clk 01:29:25]} {[%emt 00:02:58]} Ba7 {[%clk 01:20:54]} {[%emt 00:03:23]}
11. Qe2 {[%clk 01:21:27]} {[%emt 00:08:27]} Bf5 {[%clk 00:55:26]} {[%emt
00:25:58]} 12. Ne4 {[%clk 01:17:13]} {[%emt 00:04:44]} h6 {[%clk 00:49:26]}
{[%emt 00:06:30]} 13. a4 {[%clk 01:12:36]} {[%emt 00:05:07]} Re8 {[%clk
00:38:59]} {[%emt 00:10:56]} 14. Bd2 {[%clk 01:02:12]} {[%emt 00:10:55]} Qe7
{[%clk 00:17:56]} {[%emt 00:21:33]} 15. Bb3 {[%clk 00:33:31]} {[%emt 00:29:11]}
Rad8 {[%clk 00:17:42]} {[%emt 00:00:44]} 16. Bc2 {[%clk 00:26:01]} {[%emt
00:08:00]} Rd7 {[%clk 00:13:13]} {[%emt 00:04:59]} 17. b5 {[%clk 00:25:09]}
{[%emt 00:01:21]} Nd8 {[%clk 00:12:18]} {[%emt 00:01:24]} 18. Rad1 {[%clk
00:17:51]} {[%emt 00:07:49]} Nxe4 {[%clk 00:10:59]} {[%emt 00:01:49]} 19. dxe4
{[%clk 00:18:14]} {[%emt 00:00:07]} Bg4 {[%clk 00:11:00]} {[%emt 00:00:29]} 20.
Be3 {[%clk 00:16:49]} {[%emt 00:01:55]} Bxe3 {[%clk 00:10:30]} {[%emt
00:01:00]} 21. Qxe3 {[%clk 00:17:10]} {[%emt 00:00:09]} axb5 {[%clk 00:09:45]}
{[%emt 00:01:15]} 22. axb5 {[%clk 00:17:23]} {[%emt 00:00:17]} Rxd1 {[%clk
00:08:22]} {[%emt 00:01:53]} 23. Bxd1 {[%clk 00:16:36]} {[%emt 00:01:17]} Bxf3
{[%clk 00:07:15]} {[%emt 00:01:37]} 24. Qxf3 {[%clk 00:16:16]} {[%emt
00:00:50]} Qc5 {[%clk 00:06:46]} {[%emt 00:00:59]} 25. Be2 {[%clk 00:13:44]}
{[%emt 00:03:02]} Ne6 {[%clk 00:06:45]} {[%emt 00:00:31]} 26. Rd1 {[%clk
00:13:16]} {[%emt 00:00:57]} Rd8 {[%clk 00:05:51]} {[%emt 00:01:23]} 27. Rxd8+
{[%clk 00:12:44]} {[%emt 00:01:02]} Nxd8 {[%clk 00:06:20]} {[%emt 00:00:02]} 28.
Qd3 {[%clk 00:11:40]} {[%emt 00:01:34]} Ne6 {[%clk 00:03:54]} {[%emt 00:02:56]}
29. g3 {[%clk 00:10:41]} {[%emt 00:01:29]} g6 {[%clk 00:03:03]} {[%emt
00:01:21]} 30. Bg4 {[%clk 00:09:09]} {[%emt 00:02:01]} Nf8 {[%clk 00:03:21]}
{[%emt 00:00:12]} 31. h4 {[%clk 00:07:34]} {[%emt 00:02:05]} Nh7 {[%clk
00:01:24]} {[%emt 00:02:27]} 32. Bd1 {[%clk 00:05:01]} {[%emt 00:03:02]} Nf6
{[%clk 00:01:24]} {[%emt 00:00:31]} 33. Bb3 {[%clk 00:04:48]} {[%emt 00:00:44]}
Kg7 {[%clk 00:01:40]} {[%emt 00:00:14]} 34. Kg2 {[%clk 00:04:26]} {[%emt
00:00:51]} Ne8 {[%clk 00:01:29]} {[%emt 00:00:43]} 35. f4 {[%clk 00:01:36]}
{[%emt 00:03:19]} Nd6 {[%clk 00:01:33]} {[%emt 00:00:27]} 36. fxe5 {[%clk
00:01:49]} {[%emt 00:00:17]} Qxe5 {[%clk 00:01:44]} {[%emt 00:00:19]} 37. Bd5
{[%clk 00:01:57]} {[%emt 00:00:21]} b6 {[%clk 00:01:21]} {[%emt 00:00:53]} 38.
Bc6 {[%clk 00:02:07]} {[%emt 00:00:20]} Kf8 {[%clk 00:00:36]} {[%emt 00:01:15]}
39. Qd4 {[%clk 00:01:48]} {[%emt 00:00:49]} f6 {[%clk 00:00:42]} {[%emt
00:00:24]} 40. Qd3 {[%clk 00:01:44]} {[%emt 00:00:33]} Ke7 {[%clk 00:00:35]}
{[%emt 00:00:37]} 41. Qd4 {[%clk 00:23:51]} {[%emt 00:08:23]} Qxd4 {[%clk
00:15:49]} {[%emt 00:15:16]} 42. cxd4 {[%clk 00:24:17]} {[%emt 00:00:04]} Nc8
{[%clk 00:16:12]} {[%emt 00:00:08]} 43. Bd5 {[%clk 00:15:56]} {[%emt 00:08:51]}
Na7 {[%clk 00:16:17]} {[%emt 00:00:25]} 44. Bc4 {[%clk 00:16:09]} {[%emt
00:00:16]} c6 {[%clk 00:16:30]} {[%emt 00:00:17]} 45. bxc6 {[%clk 00:15:24]}
{[%emt 00:01:15]} Nxc6 {[%clk 00:16:54]} {[%emt 00:00:06]} 46. d5 {[%clk
00:13:55]} {[%emt 00:01:59]} Ne5 {[%clk 00:17:18]} {[%emt 00:00:06]} 47. Ba2
{[%clk 00:12:16]} {[%emt 00:02:09]} Kd6 {[%clk 00:17:40]} {[%emt 00:00:07]} 48.
Kf2 {[%clk 00:12:34]} {[%emt 00:00:12]} Kc5 {[%clk 00:17:54]} {[%emt 00:00:16]}
49. Ke3 {[%clk 00:12:57]} {[%emt 00:00:07]} b5 {[%clk 00:08:23]} {[%emt
00:10:02]} 50. Bb1 {[%clk 00:12:34]} {[%emt 00:00:52]} Kc4 {[%clk 00:08:05]}
{[%emt 00:00:48]} 51. Kd2 {[%clk 00:09:50]} {[%emt 00:03:15]} Kd4 {[%clk
00:08:07]} {[%emt 00:00:27]} 52. Kc2 {[%clk 00:06:25]} {[%emt 00:03:54]} Kxe4
{[%clk 00:07:45]} {[%emt 00:00:53]} 53. Ba2 {[%clk 00:06:41]} {[%emt 00:00:15]}
Kd4 {[%clk 00:06:55]} {[%emt 00:01:19]} 54. Kb2 {[%clk 00:06:19]} {[%emt
00:00:52]} Nd7 {[%clk 00:05:19]} {[%emt 00:02:07]} 55. Bb1 {[%clk 00:06:21]}
{[%emt 00:00:28]} Ne5 {[%clk 00:03:18]} {[%emt 00:02:31]} 56. d6 {[%clk
00:06:11]} {[%emt 00:00:40]} Nc4+ {[%clk 00:03:26]} {[%emt 00:00:21]} 57. Kb3
{[%clk 00:06:13]} {[%emt 00:00:26]} Nxd6 {[%clk 00:03:41]} {[%emt 00:00:16]} 58.
Bxg6 {[%clk 00:06:38]} {[%emt 00:00:05]} Ke3 {[%clk 00:03:33]} {[%emt
00:00:38]} 59. Kb4 {[%clk 00:06:22]} {[%emt 00:00:46]} Kf3 {[%clk 00:03:37]}
{[%emt 00:00:25]} 60. Kc5 {[%clk 00:06:46]} {[%emt 00:00:07]} Ne4+ {[%clk
00:02:13]} {[%emt 00:01:55]} 61. Kxb5 {[%clk 00:07:08]} {[%emt 00:00:07]} Nxg3
{[%clk 00:02:25]} {[%emt 00:00:18]} 62. Kc4 {[%clk 00:06:27]} {[%emt 00:01:12]}
Kg4 {[%clk 00:02:44]} {[%emt 00:00:09]} 63. Kd4 {[%clk 00:06:47]} {[%emt
00:00:10]} Kxh4 {[%clk 00:03:04]} {[%emt 00:00:10]} 64. Ke3 {[%clk 00:07:13]}
{[%emt 00:00:04]} Kg4 {[%clk 00:03:18]} {[%emt 00:00:16]} 65. Kf2 {[%clk
00:07:37]} {[%emt 00:00:06]} f5 {[%clk 00:03:27]} {[%emt 00:00:21]} 66. Be8
{[%clk 00:08:00]} {[%emt 00:00:07]} h5 {[%clk 00:03:34]} {[%emt 00:00:23]} 67.
Ba4 {[%clk 00:08:19]} {[%emt 00:00:11]} Ne4+ {[%clk 00:03:39]} {[%emt
00:00:26]} 68. Kg2 {[%clk 00:08:45]} {[%emt 00:00:04]} h4 {[%clk 00:02:31]}
{[%emt 00:01:38]} 69. Bd1+ {[%clk 00:09:09]} {[%emt 00:00:06]} Kf4 {[%clk
00:02:54]} {[%emt 00:00:08]} 70. Bh5 {[%clk 00:08:53]} {[%emt 00:00:45]} Ng5
{[%clk 00:03:03]} {[%emt 00:00:21]} 71. Bd1 {[%clk 00:09:01]} {[%emt 00:00:22]}
Ke3 {[%clk 00:03:27]} {[%emt 00:00:06]} 72. Ba4 {[%clk 00:08:45]} {[%emt
00:00:47]} f4 {[%clk 00:03:50]} {[%emt 00:00:08]} 73. Bb5 {[%clk 00:09:11]}
{[%emt 00:00:04]} f3+ {[%clk 00:04:10]} {[%emt 00:00:10]} 74. Kh2 {[%clk
00:09:37]} {[%emt 00:00:04]} Kf2 {[%clk 00:04:17]} {[%emt 00:00:23]} 75. Ba6
{[%clk 00:09:14]} {[%emt 00:00:53]} Ke1 {[%clk 00:04:39]} {[%emt 00:00:08]} 76.
Bb5 {[%clk 00:09:34]} {[%emt 00:00:10]} f2 {[%clk 00:04:52]} {[%emt 00:00:17]}
77. Kg2 {[%clk 00:09:50]} {[%emt 00:00:14]} h3+ {[%clk 00:05:04]} {[%emt
00:00:18]} 78. Kh2 {[%clk 00:09:57]} {[%emt 00:00:23]} f1=Q {[%clk 00:05:18]}
{[%emt 00:00:16]} 79. Bxf1 {[%clk 00:10:23]} {[%emt 00:00:04]} Kxf1 {[%clk
00:05:40]} {[%emt 00:00:08]} 80. Kh1 {[%clk 00:10:49]} {[%emt 00:00:05]} Kf2
{[%clk 00:05:53]} {[%emt 00:00:17]} 81. Kh2 {[%clk 00:11:16]} {[%emt 00:00:04]}
Kf3 {[%clk 00:06:17]} {[%emt 00:00:05]} 0-1

[Event "Schack-SM 2023: Mastarklassen"]
[Site "Helsingborg Arena, Mellersta Stenbocksgatan 14, Helsingborg, Sweden"]
[Date "2023.07.02"]
[Round "2.1"]
[White "Lundin, Jan"]
[Black "Muntean, Victor"]
[Result "1-0"]
[TimeControl "90 minutes for 40 moves + 30 minutes for the rest of games + 30 seconds per move from move one."]
[WhiteTitle "FM"]
[WhiteElo "2203"]
[BlackElo "2097"]

1. c4 {[%clk 01:30:48]} {[%emt 00:00:11]} g6 {[%clk 01:30:26]} {[%emt
00:00:34]} 2. Nc3 {[%clk 01:31:10]} {[%emt 00:00:07]} Bg7 {[%clk 01:30:51]}
{[%emt 00:00:05]} 3. g3 {[%clk 01:31:32]} {[%emt 00:00:08]} Nf6 {[%clk
01:31:15]} {[%emt 00:00:06]} 4. Bg2 {[%clk 01:31:56]} {[%emt 00:00:06]} O-O
{[%clk 01:31:39]} {[%emt 00:00:07]} 5. e4 {[%clk 01:32:07]} {[%emt 00:00:18]}
d6 {[%clk 01:32:03]} {[%emt 00:00:07]} 6. Nge2 {[%clk 01:32:23]} {[%emt
00:00:14]} c5 {[%clk 01:30:15]} {[%emt 00:02:19]} 7. O-O {[%clk 01:32:34]}
{[%emt 00:00:18]} Nc6 {[%clk 01:29:32]} {[%emt 00:01:13]} 8. d3 {[%clk
01:32:46]} {[%emt 00:00:17]} a6 {[%clk 01:26:01]} {[%emt 00:04:02]} 9. h3
{[%clk 01:32:28]} {[%emt 00:00:47]} Rb8 {[%clk 01:24:39]} {[%emt 00:01:52]} 10.
a4 {[%clk 01:31:42]} {[%emt 00:01:17]} Ne8 {[%clk 01:20:19]} {[%emt 00:04:49]}
11. Be3 {[%clk 01:32:00]} {[%emt 00:00:12]} Nc7 {[%clk 01:18:55]} {[%emt
00:01:54]} 12. d4 {[%clk 01:32:16]} {[%emt 00:00:14]} cxd4 {[%clk 01:17:09]}
{[%emt 00:02:16]} 13. Nxd4 {[%clk 01:30:43]} {[%emt 00:02:03]} Ne6 {[%clk
01:16:40]} {[%emt 00:01:00]} 14. Nde2 {[%clk 01:30:37]} {[%emt 00:00:35]} Nc5
{[%clk 01:12:17]} {[%emt 00:04:53]} 15. Rb1 {[%clk 01:30:51]} {[%emt 00:00:15]}
Nb4 {[%clk 01:09:49]} {[%emt 00:02:59]} 16. b3 {[%clk 01:23:08]} {[%emt
00:08:14]} Bd7 {[%clk 01:02:47]} {[%emt 00:07:31]} 17. Nd5 {[%clk 01:18:23]}
{[%emt 00:05:15]} Nxd5 {[%clk 00:58:52]} {[%emt 00:04:25]} 18. exd5 {[%clk
01:18:37]} {[%emt 00:00:16]} Bf5 {[%clk 00:58:32]} {[%emt 00:00:50]} 19. Rc1
{[%clk 01:18:59]} {[%emt 00:00:08]} Bb2 {[%clk 00:56:28]} {[%emt 00:02:34]} 20.
Nd4 {[%clk 01:19:19]} {[%emt 00:00:10]} Bxc1 {[%clk 00:54:48]} {[%emt
00:02:10]} 21. Qxc1 {[%clk 01:17:41]} {[%emt 00:02:07]} Bd7 {[%clk 00:48:35]}
{[%emt 00:06:44]} 22. Bh6 {[%clk 01:17:19]} {[%emt 00:00:51]} Re8 {[%clk
00:48:43]} {[%emt 00:00:22]} 23. Qc3 {[%clk 01:17:36]} {[%emt 00:00:13]} f6
{[%clk 00:46:34]} {[%emt 00:02:40]} 24. Re1 {[%clk 01:15:26]} {[%emt 00:02:40]}
Qc8 {[%clk 00:42:49]} {[%emt 00:04:15]} 25. h4 {[%clk 01:12:53]} {[%emt
00:03:03]} Kf7 {[%clk 00:34:56]} {[%emt 00:08:23]} 26. h5 {[%clk 01:06:07]}
{[%emt 00:07:15]} b5 {[%clk 00:30:36]} {[%emt 00:04:51]} 27. axb5 {[%clk
00:53:07]} {[%emt 00:13:30]} axb5 {[%clk 00:30:59]} {[%emt 00:00:07]} 28. Nc6
{[%clk 00:53:07]} {[%emt 00:00:30]} Bxc6 {[%clk 00:26:05]} {[%emt 00:05:25]} 29.
dxc6 {[%clk 00:53:30]} {[%emt 00:00:06]} e6 {[%clk 00:26:23]} {[%emt 00:00:12]}
30. b4 {[%clk 00:33:41]} {[%emt 00:20:19]} bxc4 {[%clk 00:17:27]} {[%emt
00:09:27]} 31. bxc5 {[%clk 00:26:27]} {[%emt 00:07:43]} d5 {[%clk 00:17:55]}
{[%emt 00:00:02]} 32. Bg5 {[%clk 00:20:42]} {[%emt 00:06:14]} fxg5 {[%clk
00:10:23]} {[%emt 00:08:04]} 33. h6 {[%clk 00:21:05]} {[%emt 00:00:06]} e5
{[%clk 00:10:47]} {[%emt 00:00:06]} 34. Bxd5+ {[%clk 00:20:04]} {[%emt
00:01:31]} Kf6 {[%clk 00:10:41]} {[%emt 00:00:36]} 35. Qxc4 {[%clk 00:18:41]}
{[%emt 00:01:54]} g4 {[%clk 00:06:45]} {[%emt 00:04:25]} 36. c7 {[%clk
00:13:51]} {[%emt 00:05:20]} Qxc7 {[%clk 00:05:53]} {[%emt 00:01:23]} 37. Qxg4
{[%clk 00:13:52]} {[%emt 00:00:28]} Qxc5 {[%clk 00:05:15]} {[%emt 00:01:08]} 38.
Qf3+ {[%clk 00:10:59]} {[%emt 00:03:24]} Kg5 {[%clk 00:05:29]} {[%emt
00:00:16]} 39. Rxe5+ {[%clk 00:10:48]} {[%emt 00:00:40]} Kxh6 {[%clk 00:05:35]}
{[%emt 00:00:24]} 40. Rh5+ {[%clk 00:11:00]} {[%emt 00:00:18]} 1-0